fUST/lending_fUST_20250105
["ID","MTS","AMOUNT","RATE_DAILY","PERIOD"]
[347708258,1736075451257,-606.57,0.00021369,3]
[347708259,1736075451267,-1541.8,0.00021369,3]
[347708260,1736075451276,-528.21,0.00021369,3]
[347708261,1736075451286,-874.48,0.00021369,3]
[347708262,1736075451295,-1622.68,0.00021369,3]
[347708263,1736075451305,-749.53,0.00021369,3]
[347708264,1736075451314,-500.0,0.00021369,3]
[347708265,1736075451324,-1008.72943175,0.00021383,2]
[347708266,1736075451333,-698.875494,0.00021479,2]
[347708267,1736075451344,-2927.28,0.0002149,3]
[347708268,1736075451353,-650.42,0.0002149,3]
[347708269,1736075451362,-500.0,0.0002149,3]
[347708270,1736075451372,-1008.36,0.0002149,3]
[347708271,1736075451382,-500.0,0.0002149,3]
[347708272,1736075451391,-500.0,0.0002149,3]
[347708273,1736075451400,-7526.86,0.0002149,3]
[347708274,1736075451410,-150.0,0.00021512,2]
[347708275,1736075451419,-1008.72943175,0.00021521,2]
[347708276,1736075451429,-3936.00864534,0.0002156,2]
[347708277,1736075451440,-17044.0,0.000216,4]
[347708278,1736075451449,-771.43,0.00021643,3]
[347708279,1736075451458,-500.0,0.00021643,3]
[347708280,1736075451468,-500.0,0.00021643,3]
[347708281,1736075451477,-500.0,0.00021643,3]
[347708282,1736075451487,-500.0,0.00021643,3]
[347708283,1736075451496,-764.37,0.00021643,3]
[347708284,1736075451505,-559.18,0.00021643,3]
[347708285,1736075451515,-500.0,0.00021643,3]
[347708286,1736075451525,-1261.63,0.00021643,3]
[347708287,1736075451534,-500.0,0.00021643,3]
[347708288,1736075451543,-500.0,0.00021643,3]
[347708289,1736075451552,-643.38,0.00021643,3]
[347708290,1736075451561,-620.09,0.00021643,3]
[347708291,1736075451571,-564.37,0.00021643,3]
[347708292,1736075451580,-500.0,0.00021643,3]
[347708293,1736075451589,-500.0,0.00021643,3]
[347708294,1736075451599,-907.48,0.00021643,3]
[347708295,1736075451607,-500.0,0.00021643,3]
[347708296,1736075451617,-818.38,0.00021643,3]
[347708297,1736075451626,-525.75,0.00021643,3]
[347708298,1736075451636,-500.0,0.00021643,3]
[347708299,1736075451645,-991.73,0.00021643,3]
[347708300,1736075451654,-337.97117312,0.00021643,3]
[347708301,1736075451663,-547.75,0.00021643,3]
[347708302,1736075451672,-515.31,0.00021643,3]
[347708303,1736075451682,-500.0,0.00021643,3]
[347708304,1736075451691,-500.0,0.00021643,3]
[347708305,1736075451700,-500.0,0.00021643,3]
[347708306,1736075451710,-563.22,0.00021643,3]
[347708307,1736075451719,-1372.4,0.00021643,3]
[347708308,1736075451729,-500.0,0.00021643,3]
[347708309,1736075451738,-768.06,0.00021643,3]
[347708310,1736075451747,-500.0,0.00021643,3]
[347708311,1736075451756,-714.51,0.00021643,3]
[347708312,1736075451765,-873.1,0.00021643,3]
[347708313,1736075451775,-816.48,0.00021643,3]
[347708314,1736075451784,-500.0,0.00021643,3]
[347708315,1736075451793,-930.31,0.00021643,3]
[347708316,1736075451803,-525.89,0.00021643,3]
[347708317,1736075451812,-2845.77,0.00021643,3]
[347708318,1736075451820,-566.98,0.00021643,3]
[347708319,1736075451828,-500.0,0.00021643,2]
[347708320,1736075451838,-785.9,0.00021643,3]
[347708321,1736075451847,-1509.43,0.00021643,3]
[347708322,1736075451857,-2013.44,0.00021643,3]
[347708323,1736075451866,-561.54,0.00021643,3]
[347708324,1736075451875,-10802.82,0.00021643,3]
[347708325,1736075451885,-1824.09,0.00021643,3]
[347708326,1736075451894,-35612.0,0.00021643,3]
[347708327,1736075451903,-1707.81,0.00021643,3]
[347708328,1736075451913,-654.38,0.00021643,3]
[347708329,1736075451926,-4510.09,0.00021643,3]
[347708330,1736075451935,-6592.33,0.00021643,3]
[347708331,1736075451944,-1066.18,0.00021643,3]
[347708332,1736075451954,-500.0,0.00021643,3]
[347708333,1736075451963,-1833.92,0.00021643,3]
[347708334,1736075451972,-500.0,0.00021643,3]
[347708335,1736075451982,-733.28,0.00021643,3]
[347708336,1736075451990,-525.2,0.00021643,3]
[347708337,1736075452000,-3916.48,0.00021643,3]
[347708338,1736075452009,-1237.83,0.00021643,3]
[347708339,1736075452019,-3023.5,0.00021643,3]
[347708340,1736075452028,-500.0,0.00021643,3]
[347708341,1736075452037,-1213.2,0.00021643,3]
[347708342,1736075452046,-500.0,0.00021643,3]
[347708343,1736075452056,-500.0,0.00021643,3]
[347708344,1736075452065,-500.0,0.00021643,3]
[347708345,1736075452075,-610.07,0.00021643,3]
[347708346,1736075452084,-1355.96,0.00021643,3]
[347708347,1736075452094,-2122.05,0.00021643,3]
[347708348,1736075452103,-606.57,0.00021643,3]
[347708349,1736075452112,-1541.8,0.00021643,3]
[347708350,1736075452122,-528.21,0.00021643,3]
[347708351,1736075452131,-874.48,0.00021643,3]
[347708352,1736075452140,-1622.68,0.00021643,3]
[347708353,1736075452150,-749.53,0.00021643,3]
[347708354,1736075452159,-500.0,0.00021643,3]
[347708355,1736075452168,-465.47049221,0.00021645,2]
[347708356,1736075452177,-1008.72943175,0.00021659,2]
[347708357,1736075452187,-698.875494,0.00021671,2]
[347708358,1736075452197,-2927.28,0.00021764,3]
[347708359,1736075452207,-650.42,0.00021764,3]
[347708360,1736075452216,-500.0,0.00021764,3]
[347708361,1736075452226,-1008.36,0.00021764,3]
[347708362,1736075452235,-500.0,0.00021764,3]
[347708363,1736075452244,-500.0,0.00021764,3]
[347708364,1736075452254,-7526.86,0.00021764,3]
[347708365,1736075452262,-1008.72943175,0.00021797,2]
[347708366,1736075452272,-3936.00864534,0.00021837,2]
[347708367,1736075452281,-698.875494,0.00021863,2]
[347708368,1736075452290,-822.599999,0.000219,2]
[347708369,1736075452300,-771.43,0.00021917,3]
[347708370,1736075452309,-126.93823733,0.00021917,3]
[347708371,1736075452406,-279.78870386,0.00021917,3]
[347708372,1736075452415,-500.0,0.00021917,3]
[347708373,1736075452424,-500.0,0.00021917,3]
[347708374,1736075452433,-500.0,0.00021917,3]
[347708375,1736075452442,-764.37,0.00021917,3]
[347708376,1736075452452,-559.18,0.00021917,3]
[347708377,1736075452461,-500.0,0.00021917,3]
[347708378,1736075452471,-1261.63,0.00021917,3]
[347708379,1736075452479,-227.25048218,0.00021917,3]
[347708380,1736075452491,-272.74951782,0.00021917,3]
[347708381,1736075452500,-500.0,0.00021917,3]
[347708382,1736075452509,-643.38,0.00021917,3]
[347708383,1736075452519,-620.09,0.00021917,3]
[347708384,1736075452528,-500.0,0.00021917,3]
[347708385,1736075452537,-564.37,0.00021917,3]
[347708386,1736075452547,-500.0,0.00021917,3]
[347708387,1736075452557,-907.48,0.00021917,3]
[347708388,1736075452567,-500.0,0.00021917,3]
[347708389,1736075452576,-818.38,0.00021917,3]
[347708390,1736075452585,-525.75,0.00021917,3]
[347708391,1736075452594,-500.0,0.00021917,3]
[347708392,1736075452603,-991.73,0.00021917,3]
[347708393,1736075452613,-982.23277984,0.00021917,2]
[347708394,1736075452624,-39.8597186,0.00021917,2]
[347708395,1736075452632,-344.52384952,0.00021917,3]
[347708396,1736075452780,-705.96,0.00019178,2]
[347708397,1736075452789,-433.29,0.00019298,3]
[347708398,1736075452801,-946.88,0.00019298,3]
[347708399,1736075452811,-151.0,0.00019452,2]
[347708400,1736075452819,-266.820578,0.00019452,2]
[347708401,1736075452829,-233.299422,0.00019452,3]
[347708402,1736075452840,-472.660578,0.00019452,3]
[347708403,1736075452850,-1380.17,0.00019572,3]
[347708404,1736075452859,-169.47878488,0.0002,2]
[347708405,1736075452870,-615.89240559,0.0002,2]
[347708406,1736075453114,-705.96,0.00019726,3]
[347708407,1736075453124,-1380.17,0.00019846,3]
[347708408,1736075453134,-215.31882253,0.0002,2]
[347708409,1736075453143,-705.96,0.0002,3]
[347708410,1736075453153,-1380.17,0.0002012,3]
[347708411,1736075453162,-705.96,0.00020273,3]
[347708412,1736075453172,-1380.17,0.00020394,3]
[347708413,1736075453182,-1380.17,0.00020668,3]
[347708414,1736075453192,-500.0,0.00021369,3]
[347708415,1736075453202,-500.0,0.00021643,3]
[347708416,1736075453211,-394.0,0.00021792,2]
[347708417,1736075453220,-203.22615048,0.00021917,3]
[347708418,1736075453229,-515.31,0.00021917,3]
[347708419,1736075453239,-500.0,0.00021917,3]
[347708420,1736075453248,-500.0,0.00021917,3]
[347708421,1736075453258,-500.0,0.00021917,3]
[347708422,1736075453267,-563.22,0.00021917,3]
[347708423,1736075453277,-500.0,0.00021917,3]
[347708424,1736075453286,-768.06,0.00021917,3]
[347708425,1736075453295,-714.51,0.00021917,3]
[347708426,1736075453305,-873.1,0.00021917,3]
[347708427,1736075453314,-398.69489799,0.00021917,3]
[347708428,1736075453326,-417.78510201,0.00021917,3]
[347708429,1736075453460,-500.0,0.00021917,3]
[347708430,1736075453470,-930.31,0.00021917,3]
[347708431,1736075453480,-525.89,0.00021917,3]
[347708432,1736075453490,-2845.77,0.00021917,3]
[347708433,1736075453499,-566.98,0.00021917,3]
[347708434,1736075453509,-500.0,0.00021917,2]
[347708435,1736075453518,-785.9,0.00021917,3]
[347708436,1736075453528,-1509.43,0.00021917,3]
[347708437,1736075453537,-2013.44,0.00021917,3]
[347708438,1736075453547,-561.54,0.00021917,3]
[347708439,1736075453556,-9182.15507199,0.00021917,3]
[347708440,1736075453568,-1620.66492801,0.00021917,3]
[347708441,1736075453577,-1824.09,0.00021917,3]
[347708442,1736075453587,-35612.0,0.00021917,3]
[347708443,1736075453596,-1707.81,0.00021917,3]
[347708444,1736075453606,-654.38,0.00021917,3]
[347708445,1736075453616,-4510.09,0.00021917,3]
[347708446,1736075453626,-6592.33,0.00021917,3]
[347708447,1736075453636,-1066.18,0.00021917,3]
[347708448,1736075453647,-624.79646024,0.00021917,3]
[347708449,1736075453656,-1833.92,0.00021917,3]
[347708450,1736075453666,-3000.0,0.00021917,30]
[347708451,1736075453676,-3000.0,0.00021917,30]
[347708452,1736075453685,-3000.0,0.00021917,30]
[347708453,1736075453695,-1110.73090021,0.00021917,30]
[347708454,1736075453704,-500.0,0.00021917,3]
[347708455,1736075453713,-733.28,0.00021917,3]
[347708456,1736075453723,-525.2,0.00021917,3]
[347708457,1736075453732,-3916.48,0.00021917,3]
[347708458,1736075453742,-1237.83,0.00021917,3]
[347708459,1736075453752,-3023.5,0.00021917,3]
[347708460,1736075453762,-500.0,0.00021917,3]
[347708461,1736075453771,-1213.2,0.00021917,3]
[347708462,1736075453781,-500.0,0.00021917,3]
[347708463,1736075453791,-500.0,0.00021917,3]
[347708464,1736075453801,-495.16221935,0.00021917,3]
[347708465,1736075453810,-610.07,0.00021917,3]
[347708466,1736075453820,-1355.96,0.00021917,3]
[347708467,1736075453829,-2122.05,0.00021917,3]
[347708468,1736075453839,-606.57,0.00021917,3]
[347708469,1736075453849,-1541.8,0.00021917,3]
[347708470,1736075453858,-528.21,0.00021917,3]
[347708471,1736075453868,-874.48,0.00021917,3]
[347708472,1736075453877,-1622.68,0.00021917,3]
[347708473,1736075453886,-749.53,0.00021917,3]
[347708474,1736075453896,-500.0,0.00021917,3]
[347708475,1736075453906,-500.0,0.00021917,3]
[347708476,1736075453916,-166.21,0.0002192,2]
[347708477,1736075453926,-1008.72943175,0.00021934,2]
[347708478,1736075453935,-2940.0,0.0002197,2]
[347708479,1736075453944,-15112.38303193,0.0002198,7]
[347708483,1736075695330,327.917042,0.00013973,2]
[347708500,1736076505568,269.71271375,0.00014114,2]
[347708504,1736076516692,565.6898559,0.000149,2]
[347708513,1736076620933,326.202399,0.00013973,2]
[347708534,1736076632471,-299.06523835,0.0001517,2]
[347708536,1736076632483,-766.18900771,0.0001517,2]
[347708538,1736076632493,-748.83999846,0.00015852,2]
[347708540,1736076632508,-1358.69997473,0.00015852,2]
[347708542,1736076632518,-2890.04116614,0.00017,2]
[347708544,1736076632527,-235.37020079,0.000175,2]
[347708546,1736076632536,-235.37020074,0.000175,2]
[347708548,1736076632548,-235.37020074,0.000175,2]
[347708550,1736076632558,-235.37020074,0.00017521,2]
[347708552,1736076632567,-235.37020074,0.00017728,2]
[347708554,1736076632577,-235.37020074,0.00017934,2]
[347708556,1736076632586,-4951.49874908,0.00018,2]
[347708558,1736076632595,-235.37020074,0.00018141,2]
[347708560,1736076632604,-235.37020074,0.00018348,2]
[347708562,1736076632613,-235.37020074,0.00018555,2]
[347708564,1736076632624,-235.37020074,0.00018762,2]
[347708566,1736076632633,-300.0,0.00018898,2]
[347708568,1736076632642,-235.37020074,0.00018969,2]
[347708570,1736076632651,-1022.93001417,0.00019,2]
[347709146,1736076638362,-499.77566816,0.00015952,2]
[347709149,1736076638375,-0.22433184,0.00015952,2]
[347709151,1736076638385,-500.0,0.00018692,2]
[347709153,1736076638394,-343.9664919,0.00019,2]
[347709155,1736076638405,-2990.084995,0.00019,2]
[347709157,1736076638416,-3157.4254304,0.00019,2]
[347709159,1736076638428,-7050.36087845,0.00019,2]
[347709161,1736076638440,-10005.77914135,0.00019,2]
[347709396,1736076640646,-2354.00002703,0.00019,2]
[347709675,1736076643348,-37617.78720613,0.00019,2]
[347709679,1736076643381,-3000.0,0.00019,2]
[347709961,1736076646298,-6180.05306074,0.00019,2]
[347709963,1736076646308,-1307.25596223,0.00019,3]
[347709965,1736076646318,-500.0,0.00019175,2]
[347709967,1736076646328,-165.21065165,0.00019175,2]
[347709969,1736076646337,-163.18945706,0.00019175,2]
[347709971,1736076646347,-500.0,0.00019175,2]
[347709973,1736076646357,-500.0,0.00019175,2]
[347709975,1736076646367,-529.54316298,0.00019175,2]
[347709977,1736076646378,-329.17913792,0.00019175,2]
[347709979,1736076646389,-500.0,0.00019175,2]
[347709981,1736076646399,-500.0,0.00019175,2]
[347709983,1736076646410,-500.0,0.00019175,2]
[347709985,1736076646420,-500.0,0.00019175,2]
[347709987,1736076646430,-500.0,0.00019175,2]
[347709989,1736076646439,-370.17234547,0.00019175,2]
[347709991,1736076646449,-375.63186919,0.00019175,2]
[347709993,1736076646459,-506.64599152,0.00019175,2]
[347709995,1736076646469,-515.66984195,0.00019175,2]
[347709997,1736076646479,-270.80865381,0.00019175,2]
[347709999,1736076646489,-194.36890416,0.00019175,2]
[347710001,1736076646500,-235.37020074,0.00019176,2]
[347710003,1736076646511,-147940.95783179,0.00019176,2]
[347710005,1736076646521,-164.055,0.00019177,2]
[347710007,1736076646531,-500.0,0.00019178,2]
[347710010,1736076646543,-500.0,0.00019178,2]
[347710012,1736076646552,-500.0,0.00019178,2]
[347710013,1736076646562,-500.0,0.00019178,2]
[347710016,1736076646572,-500.0,0.00019178,2]
[347710018,1736076646583,-683.38,0.00019178,2]
[347710020,1736076646593,-500.0,0.00019178,2]
[347710022,1736076646602,-500.0,0.00019178,2]
[347710024,1736076646612,-500.0,0.00019178,2]
[347710026,1736076646622,-500.0,0.00019178,2]
[347710028,1736076646632,-500.0,0.00019178,2]
[347710029,1736076646642,-500.0,0.00019178,2]
[347710031,1736076646651,-500.0,0.00019178,2]
[347710033,1736076646660,-500.0,0.00019178,2]
[347710035,1736076646671,-500.0,0.00019178,2]
[347710036,1736076646680,-500.0,0.00019178,2]
[347710039,1736076646690,-500.0,0.00019178,2]
[347710040,1736076646700,-500.0,0.00019178,2]
[347710042,1736076646711,-537.19,0.00019178,2]
[347710044,1736076646720,-500.0,0.00019178,2]
[347710046,1736076646730,-500.0,0.00019178,2]
[347710048,1736076646739,-500.0,0.00019178,2]
[347710050,1736076646749,-500.0,0.00019178,2]
[347710052,1736076646758,-500.0,0.00019178,2]
[347710054,1736076646768,-558.89,0.00019178,2]
[347710056,1736076646777,-2121.42,0.00019178,2]
[347710058,1736076646786,-500.0,0.00019178,2]
[347710060,1736076646796,-500.0,0.00019178,2]
[347710062,1736076646806,-500.0,0.00019178,2]
[347710064,1736076646815,-500.0,0.00019178,2]
[347710066,1736076646824,-500.0,0.00019178,2]
[347710068,1736076646834,-500.0,0.00019178,2]
[347710070,1736076646843,-500.0,0.00019178,2]
[347710072,1736076646853,-503.91,0.00019178,2]
[347710074,1736076646863,-1541.46,0.00019178,2]
[347710076,1736076646872,-500.0,0.00019178,2]
[347710078,1736076646881,-500.0,0.00019178,2]
[347710080,1736076646891,-500.0,0.00019178,2]
[347710082,1736076646900,-500.0,0.00019178,2]
[347710084,1736076646910,-1728.41,0.00019178,2]
[347710086,1736076646920,-500.0,0.00019178,2]
[347710088,1736076646930,-817.61,0.00019178,2]
[347710090,1736076646939,-1090.62,0.00019178,2]
[347710092,1736076646949,-500.0,0.00019178,2]
[347710094,1736076646958,-988.05,0.00019178,2]
[347710096,1736076646968,-19289.83,0.00019178,2]
[347710098,1736076646977,-925.06,0.00019178,2]
[347710100,1736076646986,-5851.53,0.00019178,2]
[347710102,1736076646995,-577.51,0.00019178,2]
[347710104,1736076647005,-500.0,0.00019178,2]
[347710106,1736076647015,-500.0,0.00019178,2]
[347710108,1736076647024,-500.0,0.00019178,2]
[347710110,1736076647034,-2442.96,0.00019178,2]
[347710112,1736076647044,-993.37,0.00019178,2]
[347710114,1736076647053,-500.0,0.00019178,2]
[347710116,1736076647063,-4390.67,0.00019178,2]
[347710118,1736076647072,-500.0,0.00019178,2]
[347710120,1736076647081,-500.0,0.00019178,2]
[347710122,1736076647090,-670.49,0.00019178,2]
[347710123,1736076647099,-500.0,0.00019178,2]
[347710125,1736076647109,-500.0,0.00019178,2]
[347710127,1736076647118,-500.0,0.00019178,2]
[347710129,1736076647127,-657.15,0.00019178,2]
[347710131,1736076647137,-500.0,0.00019178,2]
[347710133,1736076647149,-500.0,0.00019178,2]
[347710135,1736076647158,-500.0,0.00019178,2]
[347710137,1736076647167,-1637.72,0.00019178,2]
[347710139,1736076647176,-500.0,0.00019178,2]
[347710141,1736076647185,-500.0,0.00019178,2]
[347710143,1736076647195,-1573.86,0.00019178,2]
[347710145,1736076647204,-500.0,0.00019178,2]
[347710147,1736076647213,-588.21,0.00019178,2]
[347710149,1736076647222,-500.0,0.00019178,2]
[347710151,1736076647231,-734.48,0.00019178,2]
[347710153,1736076647240,-1035.13,0.00019178,2]
[347710155,1736076647250,-500.0,0.00019178,2]
[347710157,1736076647259,-500.0,0.00019178,2]
[347710159,1736076647268,-835.14,0.00019178,2]
[347710161,1736076647277,-500.0,0.00019178,2]
[347710163,1736076647287,-878.95,0.00019178,2]
[347710165,1736076647298,-800.57,0.00019178,2]
[347710167,1736076647308,-500.0,0.00019178,2]
[347710169,1736076647318,-500.0,0.00019178,2]
[347710171,1736076647327,-278.86,0.000192,2]
[347710173,1736076647336,-500.0,0.00019298,2]
[347710175,1736076647345,-3570.84,0.00019298,3]
[347710177,1736076647355,-150.300979,0.000193,2]
[347710179,1736076647364,-235.37020074,0.00019383,2]
[347710181,1736076647373,-499.0,0.00019451,2]
[347710183,1736076647382,-500.0,0.00019452,3]
[347710184,1736076647393,-500.0,0.00019452,3]
[347710186,1736076647402,-500.0,0.00019452,3]
[347710188,1736076647411,-500.0,0.00019452,3]
[347710190,1736076647422,-500.0,0.00019452,3]
[347710192,1736076647431,-683.38,0.00019452,3]
[347710194,1736076647440,-500.0,0.00019452,3]
[347710196,1736076647449,-500.0,0.00019452,3]
[347710198,1736076647458,-500.0,0.00019452,3]
[347710200,1736076647468,-500.0,0.00019452,3]
[347710202,1736076647477,-500.0,0.00019452,3]
[347710204,1736076647486,-500.0,0.00019452,3]
[347710206,1736076647495,-500.0,0.00019452,3]
[347710208,1736076647509,-500.0,0.00019452,3]
[347710210,1736076647519,-500.0,0.00019452,3]
[347710212,1736076647528,-500.0,0.00019452,3]
[347710215,1736076647537,-500.0,0.00019452,3]
[347710217,1736076647547,-500.0,0.00019452,3]
[347710219,1736076647556,-537.19,0.00019452,3]
[347710221,1736076647566,-500.0,0.00019452,3]
[347710223,1736076647575,-500.0,0.00019452,3]
[347710225,1736076647584,-500.0,0.00019452,3]
[347710227,1736076647593,-500.0,0.00019452,3]
[347710229,1736076647603,-500.0,0.00019452,3]
[347710231,1736076647612,-558.89,0.00019452,3]
[347710233,1736076647621,-2121.42,0.00019452,3]
[347710235,1736076647630,-500.0,0.00019452,3]
[347710237,1736076647641,-500.0,0.00019452,3]
[347710239,1736076647650,-500.0,0.00019452,3]
[347710241,1736076647659,-500.0,0.00019452,3]
[347710243,1736076647668,-500.0,0.00019452,3]
[347710245,1736076647678,-500.0,0.00019452,3]
[347710247,1736076647687,-500.0,0.00019452,3]
[347710249,1736076647697,-503.91,0.00019452,3]
[347710251,1736076647706,-1541.46,0.00019452,3]
[347710253,1736076647715,-500.0,0.00019452,3]
[347710255,1736076647725,-500.0,0.00019452,3]
[347710257,1736076647734,-500.0,0.00019452,3]
[347710259,1736076647743,-500.0,0.00019452,3]
[347710261,1736076647753,-1728.41,0.00019452,3]
[347710263,1736076647762,-500.0,0.00019452,3]
[347710265,1736076647771,-817.61,0.00019452,3]
[347710267,1736076647781,-1090.62,0.00019452,3]
[347710269,1736076647790,-500.0,0.00019452,3]
[347710271,1736076647799,-988.05,0.00019452,3]
[347710273,1736076647808,-19289.83,0.00019452,3]
[347710275,1736076647817,-925.06,0.00019452,3]
[347710277,1736076647827,-5851.53,0.00019452,3]
[347710279,1736076647836,-577.51,0.00019452,3]
[347710281,1736076647845,-500.0,0.00019452,3]
[347710283,1736076647854,-500.0,0.00019452,3]
[347710285,1736076647863,-500.0,0.00019452,3]
[347710287,1736076647873,-2442.96,0.00019452,3]
[347710289,1736076647882,-993.37,0.00019452,3]
[347710291,1736076647891,-4390.67,0.00019452,3]
[347710293,1736076647901,-500.0,0.00019452,3]
[347710295,1736076647910,-500.0,0.00019452,3]
[347710297,1736076647919,-670.49,0.00019452,3]
[347710299,1736076647929,-500.0,0.00019452,3]
[347710301,1736076647938,-432.73387551,0.00019452,3]
[347710303,1736076647947,-500.0,0.00019452,3]
[347710305,1736076647957,-657.15,0.00019452,3]
[347710307,1736076647966,-500.0,0.00019452,3]
[347710309,1736076647975,-500.0,0.00019452,3]
[347710311,1736076647984,-500.0,0.00019452,3]
[347710313,1736076647993,-1637.72,0.00019452,3]
[347710315,1736076648003,-500.0,0.00019452,3]
[347710317,1736076648012,-500.0,0.00019452,3]
[347710319,1736076648021,-1573.86,0.00019452,3]
[347710321,1736076648031,-500.0,0.00019452,3]
[347710323,1736076648041,-588.21,0.00019452,3]
[347710325,1736076648050,-500.0,0.00019452,3]
[347710327,1736076648059,-734.48,0.00019452,3]
[347710329,1736076648068,-1035.13,0.00019452,3]
[347710331,1736076648078,-500.0,0.00019452,3]
[347710333,1736076648087,-500.0,0.00019452,3]
[347710335,1736076648097,-835.14,0.00019452,3]
[347710337,1736076648106,-878.95,0.00019452,3]
[347710339,1736076648115,-500.0,0.00019452,3]
[347710340,1736076648125,-800.57,0.00019452,3]
[347710342,1736076648134,-500.0,0.00019452,3]
[347710344,1736076648144,-271.03499006,0.00019473,2]
[347710346,1736076648153,-2088.0,0.00019489,2]
[347710347,1736076648163,-394.0,0.00019489,2]
[347710349,1736076648172,-500.0,0.00019572,2]
[347710351,1736076648181,-3570.84,0.00019572,3]
[347710353,1736076648191,-235.37020074,0.0001959,2]
[347710355,1736076648200,-1200.0,0.0001961,2]
[347710356,1736076648209,-500.0,0.00019726,3]
[347710358,1736076648219,-500.0,0.00019726,3]
[347710360,1736076648229,-500.0,0.00019726,3]
[347710362,1736076648238,-500.0,0.00019726,3]
[347710363,1736076648247,-432.60000001,0.00019726,3]
[347710365,1736076648257,-683.38,0.00019726,3]
[347710367,1736076648266,-500.0,0.00019726,3]
[347710369,1736076648275,-250.16139892,0.00019726,3]
[347710371,1736076648285,-500.0,0.00019726,3]
[347710372,1736076648294,-500.0,0.00019726,3]
[347710374,1736076648304,-500.0,0.00019726,3]
[347710376,1736076648314,-500.0,0.00019726,3]
[347710378,1736076648326,-500.0,0.00019726,3]
[347710380,1736076648335,-500.0,0.00019726,3]
[347710382,1736076648345,-500.0,0.00019726,3]
[347710384,1736076648355,-500.0,0.00019726,3]
[347710386,1736076648365,-500.0,0.00019726,3]
[347710387,1736076648375,-500.0,0.00019726,3]
[347710389,1736076648384,-537.19,0.00019726,3]
[347710391,1736076648394,-500.0,0.00019726,3]
[347710393,1736076648403,-500.0,0.00019726,3]
[347710395,1736076648413,-500.0,0.00019726,3]
[347710396,1736076648422,-500.0,0.00019726,3]
[347710398,1736076648431,-500.0,0.00019726,3]
[347710400,1736076648441,-558.89,0.00019726,3]
[347710402,1736076648450,-2121.42,0.00019726,3]
[347710404,1736076648460,-500.0,0.00019726,3]
[347710405,1736076648469,-500.0,0.00019726,3]
[347710407,1736076648478,-500.0,0.00019726,3]
[347710409,1736076648487,-500.0,0.00019726,3]
[347710411,1736076648496,-500.0,0.00019726,3]
[347710412,1736076648510,-500.0,0.00019726,3]
[347710414,1736076648520,-500.0,0.00019726,3]
[347710416,1736076648530,-503.91,0.00019726,3]
[347710418,1736076648539,-1541.46,0.00019726,3]
[347710420,1736076648550,-500.0,0.00019726,3]
[347710422,1736076648560,-500.0,0.00019726,3]
[347710423,1736076648569,-500.0,0.00019726,3]
[347710425,1736076648579,-500.0,0.00019726,3]
[347710427,1736076648589,-1728.41,0.00019726,3]
[347710429,1736076648598,-500.0,0.00019726,3]
[347710430,1736076648608,-817.61,0.00019726,3]
[347710432,1736076648617,-1090.62,0.00019726,3]
[347710434,1736076648627,-500.0,0.00019726,3]